[Event "Limburg Open 2022"]
[Site "Maastricht"]
[Date "2022.06.05"]
[Round "5.5"]
[White "Strating, Sybolt"]
[Black "Ernst, Sipke"]
[Result "0-1"]
[ECO "E62"]
[WhiteElo "2291"]
[BlackElo "2538"]
[PlyCount "126"]
[EventDate "2022.06.03"]
[EventType "swiss"]
[EventRounds "7"]
[EventCountry "NED"]
[SourceTitle "Limburg Open"]
[Source "Limburg Open"]
[SourceDate "2022.06.06"]
[SourceVersion "7"]
[SourceVersionDate "2022.06.06"]
[SourceQuality "1"]
[TimeControl "7200+15"]

1. d4 {[%emt 0:00:04]} g6 {[%emt 0:02:27]} 2. Nf3 {[%emt 0:00:22]} Bg7 {
[%emt 0:01:22]} 3. c4 {[%emt 0:00:26]} Nf6 {[%emt 0:00:11]} 4. Nc3 {[%emt 0:00:
30]} O-O {[%emt 0:01:13]} 5. g3 {[%emt 0:00:23]} d6 {[%emt 0:03:56]} 6. Bg2 {
[%emt 0:00:12]} c6 {[%emt 0:00:51]} 7. O-O {[%emt 0:00:35]} Bf5 {[%emt 0:00:54]
} 8. b3 {[%emt 0:09:45]} Ne4 {[%emt 0:02:17]} 9. Bb2 {[%emt 0:00:27]} Qc8 {
[%emt 0:00:48]} 10. Re1 {[%emt 0:03:09]} Nxc3 {[%emt 0:03:36]} 11. Bxc3 {
[%emt 0:00:06]} Be4 {[%emt 0:00:12]} 12. Qd2 {[%emt 0:03:58]} Nd7 {[%emt 0:11:
00]} 13. Bh3 {[%emt 0:01:54]} Bxf3 {[%emt 0:00:50]} 14. exf3 {[%emt 0:00:07]}
Re8 {[%emt 0:05:48]} 15. Re3 {[%emt 0:04:49]} Qd8 {[%emt 0:04:09]} 16. f4 {
[%emt 0:07:21]} d5 {[%emt 0:05:31]} 17. cxd5 {[%emt 0:20:30]} cxd5 {[%emt 0:00:
13]} 18. Ba5 {[%emt 0:00:06]} b6 {[%emt 0:02:32]} 19. Bc3 {[%emt 0:00:09]} e6 {
[%emt 0:01:13]} 20. Bf1 {[%emt 0:00:55]} Nf6 {[%emt 0:02:16]} 21. Bb2 {[%emt 0:
04:21]} Ne4 {[%emt 0:01:08]} 22. Qd1 {[%emt 0:03:52]} Rc8 {[%emt 0:01:44]} 23.
Bd3 {[%emt 0:07:43]} Nd6 {[%emt 0:02:52]} 24. Re2 {[%emt 0:00:51]} b5 {[%emt 0:
12:10]} 25. a4 {[%emt 0:05:22]} bxa4 {[%emt 0:02:01]} 26. Rxa4 {[%emt 0:01:39]}
Qb6 {[%emt 0:03:48]} 27. Ba3 {[%emt 0:07:49]} a5 {[%emt 0:03:21]} 28. Bc5 {
[%emt 0:01:54]} Rxc5 {[%emt 0:01:10]} 29. dxc5 {[%emt 0:00:06]} Qxc5 {[%emt 0:
00:03]} 30. Rc2 {[%emt 0:03:30]} Bc3 {[%emt 0:05:00]} 31. Qc1 {[%emt 0:06:25]}
Rc8 {[%emt 0:03:08]} 32. Kg2 {[%emt 0:08:59]} d4 {[%emt 0:00:45]} 33. f3 {
[%emt 0:06:58]} Qd5 {[%emt 0:07:37]} 34. Ra3 {[%emt 0:03:41]} Rc7 {[%emt 0:01:
40]} 35. g4 {[%emt 0:00:19]} Rc5 {[%emt 0:02:08]} 36. Qf1 {[%emt 0:01:07]} Qc6
{[%emt 0:01:50]} 37. Qe2 {[%emt 0:02:03]} Qc7 {[%emt 0:00:22]} 38. Qd1 {
[%emt 0:02:34]} Kf8 {[%emt 0:02:14]} 39. h4 {[%emt 0:00:23]} Ne8 {[%emt 0:00:
18]} 40. Qc1 {[%emt 0:00:16]} Nf6 {[%emt 0:01:08]} 41. Bc4 {[%emt 0:01:09]} Bb4
{[%emt 0:03:32]} 42. Raa2 {[%emt 0:00:17]} Qd6 {[%emt 0:02:29]} 43. Kg3 {
[%emt 0:01:02]} h5 {[%emt 0:04:58]} 44. g5 {[%emt 0:01:13]} Ne8 {[%emt 0:00:30]
} 45. Re2 {[%emt 0:00:10]} d3 {[%emt 0:02:35]} 46. Re3 {[%emt 0:00:33]} Ng7 {
[%emt 0:00:29]} 47. Re4 {[%emt 0:00:52]} Nf5+ {[%emt 0:01:04]} 48. Kh3 {
[%emt 0:00:05]} d2 {[%emt 0:00:12]} 49. Qd1 {[%emt 0:00:02]} Kg8 {[%emt 0:02:
45]} 50. Ra1 {[%emt 0:00:03]} Qd7 {[%emt 0:03:33]} 51. Qe2 {[%emt 0:00:34]} Kh7
{[%emt 0:01:08]} 52. Rd1 {[%emt 0:00:45]} Rc7 {[%emt 0:00:32]} 53. Re5 {
[%emt 0:00:21]} Bc3 {[%emt 0:00:12]} 54. Re4 {[%emt 0:00:16]} Bb4 {[%emt 0:00:
32]} 55. Re5 {[%emt 0:00:02]} Qd4 {[%emt 0:00:09]} 56. Re4 {[%emt 0:00:06]} Qc3
{[%emt 0:00:09]} 57. Qf2 {[%emt 0:00:20]} a4 {[%emt 0:00:37]} 58. Be2 {[%emt 0:
00:42]} Bc5 {[%emt 0:00:52]} 59. Qf1 {[%emt 0:00:22]} Ne3 {[%emt 0:00:49]} 60.
Rxe3 {[%emt 0:00:06]} Qxe3 {[%emt 0:00:08]} 61. bxa4 {[%emt 0:00:01]} Qxf4 {
[%emt 0:00:02]} 62. a5 {[%emt 0:00:15]} Bd6 {[%emt 0:00:05]} 63. Qg2 {[%emt 0:
00:02]} Qf5+ {[%emt 0:00:02]} 0-1

[Event "Limburg Open 2022"]
[Site "Maastricht"]
[Date "2022.06.05"]
[Round "5.6"]
[White "Van Dael, Siem"]
[Black "Zwirs, Nico"]
[Result "0-1"]
[ECO "B90"]
[WhiteElo "2317"]
[BlackElo "2475"]
[PlyCount "70"]
[EventDate "2022.06.03"]
[EventType "swiss"]
[EventRounds "7"]
[EventCountry "NED"]
[SourceTitle "Limburg Open"]
[Source "Limburg Open"]
[SourceDate "2022.06.06"]
[SourceVersion "7"]
[SourceVersionDate "2022.06.06"]
[SourceQuality "1"]
[TimeControl "7200+15"]

1. e4 {[%emt 0:00:08]} c5 {[%emt 0:00:06]} 2. Nf3 {[%emt 0:00:05]} d6 {[%emt 0:
00:05]} 3. d4 {[%emt 0:00:04]} cxd4 {[%emt 0:00:03]} 4. Nxd4 {[%emt 0:00:08]}
Nf6 {[%emt 0:00:05]} 5. Nc3 {[%emt 0:00:06]} a6 {[%emt 0:00:03]} 6. Be3 {
[%emt 0:00:12]} e5 {[%emt 0:00:07]} 7. Nb3 {[%emt 0:00:05]} Be6 {[%emt 0:00:13]
} 8. f3 {[%emt 0:00:08]} Be7 {[%emt 0:00:17]} 9. Qd2 {[%emt 0:00:07]} Nbd7 {
[%emt 0:00:14]} 10. g4 {[%emt 0:01:11]} O-O {[%emt 0:00:10]} 11. O-O-O {
[%emt 0:00:07]} b5 {[%emt 0:00:06]} 12. g5 {[%emt 0:00:06]} Nh5 {[%emt 0:00:05]
} 13. Kb1 {[%emt 0:03:34]} Nb6 {[%emt 0:01:21]} 14. Na5 {[%emt 0:07:20]} Rc8 {
[%emt 0:00:38]} 15. Nd5 {[%emt 0:02:35]} Nxd5 {[%emt 0:00:51]} 16. exd5 {
[%emt 0:00:05]} Bxd5 {[%emt 0:00:14]} 17. Qxd5 {[%emt 0:00:04]} Qxa5 {[%emt 0:
00:03]} 18. Bd3 {[%emt 0:05:28]} g6 {[%emt 0:02:15]} 19. h4 {[%emt 0:07:14]}
Qc7 {[%emt 0:04:09]} 20. Rhg1 {[%emt 0:09:37]} Rfe8 {[%emt 0:02:51]} 21. Rg4 {
[%emt 0:05:40]} Bf8 {[%emt 0:02:01]} 22. a4 {[%emt 0:05:40]} Nf4 {[%emt 0:10:
50]} 23. Bxf4 {[%emt 0:01:24]} exf4 {[%emt 0:00:52]} 24. Rxf4 {[%emt 0:04:14]}
Re5 {[%emt 0:00:29]} 25. Qb3 {[%emt 0:00:57]} d5 {[%emt 0:15:59]} 26. Rf6 {
[%emt 0:04:11]} bxa4 {[%emt 0:06:40]} 27. Qxa4 {[%emt 0:02:38]} Rb8 {[%emt 0:
11:49]} 28. Qxa6 {[%emt 0:31:11]} Bg7 {[%emt 0:21:51]} 29. Rc6 {[%emt 0:08:00]}
Re1 {[%emt 0:07:25]} 30. Rxe1 {[%emt 0:03:15]} Rxb2+ {[%emt 0:00:33]} 31. Ka1 {
[%emt 0:06:26]} Rxc2+ {[%emt 0:09:54]} 32. Kb1 {[%emt 0:00:05]} Rb2+ {[%emt 0:
00:05]} 33. Ka1 {[%emt 0:00:03]} Re2+ {[%emt 0:00:36]} 34. Kb1 {[%emt 0:00:08]}
Rxe1+ {[%emt 0:00:23]} 35. Kc2 {[%emt 0:00:05]} Qh2+ {[%emt 0:00:06]} 0-1

[Event "Limburg Open 2022"]
[Site "Maastricht"]
[Date "2022.06.05"]
[Round "5.7"]
[White "Braun, Christian"]
[Black "Van Roon, Sjoerd"]
[Result "1/2-1/2"]
[ECO "A04"]
[WhiteElo "2428"]
[BlackElo "2280"]
[PlyCount "55"]
[EventDate "2022.06.03"]
[EventType "swiss"]
[EventRounds "7"]
[EventCountry "NED"]
[SourceTitle "Limburg Open"]
[Source "Limburg Open"]
[SourceDate "2022.06.06"]
[SourceVersion "7"]
[SourceVersionDate "2022.06.06"]
[SourceQuality "1"]
[TimeControl "7200+15"]

1. Nf3 {[%emt 0:00:04]} Nf6 {[%emt 0:00:37]} 2. g3 {[%emt 0:00:09]} b6 {
[%emt 0:00:14]} 3. d3 {[%emt 0:00:12]} Bb7 {[%emt 0:00:21]} 4. e4 {[%emt 0:00:
11]} g6 {[%emt 0:01:18]} 5. Bg2 {[%emt 0:00:24]} Bg7 {[%emt 0:00:32]} 6. O-O {
[%emt 0:00:22]} O-O {[%emt 0:01:14]} 7. Re1 {[%emt 0:02:03]} d6 {[%emt 0:01:54]
} 8. Nbd2 {[%emt 0:00:45]} c5 {[%emt 0:01:07]} 9. a4 {[%emt 0:02:19]} Nc6 {
[%emt 0:01:33]} 10. Nc4 {[%emt 0:01:57]} e5 {[%emt 0:02:29]} 11. Bg5 {[%emt 0:
00:29]} h6 {[%emt 0:02:06]} 12. Bxf6 {[%emt 0:01:21]} Qxf6 {[%emt 0:03:12]} 13.
Ne3 {[%emt 0:02:47]} Rae8 {[%emt 0:06:05]} 14. h4 {[%emt 0:03:27]} h5 {[%emt 0:
05:17]} 15. c3 {[%emt 0:01:16]} Ne7 {[%emt 0:10:44]} 16. Qb3 {[%emt 0:01:48]}
Rd8 {[%emt 0:02:04]} 17. Nd2 {[%emt 0:05:29]} Ba6 {[%emt 0:07:58]} 18. Ndc4 {
[%emt 0:02:19]} Bh6 {[%emt 0:06:28]} 19. Rad1 {[%emt 0:00:16]} Qe6 {[%emt 0:00:
47]} 20. Kh2 {[%emt 0:03:21]} Bxe3 {[%emt 0:05:33]} 21. Rxe3 {[%emt 0:00:31]}
d5 {[%emt 0:01:07]} 22. exd5 {[%emt 0:06:01]} Nxd5 {[%emt 0:00:10]} 23. Bh3 {
[%emt 0:15:47]} Bxc4 {[%emt 0:02:46]} 24. dxc4 {[%emt 0:01:19]} Nxe3 {[%emt 0:
00:13]} 25. Bxe6 {[%emt 0:03:11]} Nxd1 {[%emt 0:03:17]} 26. Qc2 {[%emt 0:00:06]
} fxe6 {[%emt 0:02:12]} 27. Qxg6+ {[%emt 0:01:55]} Kh8 {[%emt 0:00:04]} 28.
Qh6+ {[%emt 0:10:08]} 1/2-1/2

[Event "Limburg Open 2022"]
[Site "Maastricht"]
[Date "2022.06.05"]
[Round "5.8"]
[White "Suvorov, Alexander"]
[Black "De Boer, Bas"]
[Result "1/2-1/2"]
[ECO "D32"]
[WhiteElo "2348"]
[BlackElo "2115"]
[PlyCount "34"]
[EventDate "2022.06.03"]
[EventType "swiss"]
[EventRounds "7"]
[EventCountry "NED"]
[SourceTitle "Limburg Open"]
[Source "Limburg Open"]
[SourceDate "2022.06.06"]
[SourceVersion "7"]
[SourceVersionDate "2022.06.06"]
[SourceQuality "1"]
[TimeControl "7200+15"]

1. d4 {[%emt 0:00:02]} d5 {[%emt 0:00:08]} 2. c4 {[%emt 0:00:06]} e6 {[%emt 0:
00:09]} 3. Nc3 {[%emt 0:00:11]} a6 {[%emt 0:00:07]} 4. cxd5 {[%emt 0:00:47]}
exd5 {[%emt 0:00:09]} 5. Bf4 {[%emt 0:00:21]} Nf6 {[%emt 0:00:56]} 6. e3 {
[%emt 0:00:42]} c5 {[%emt 0:00:56]} 7. dxc5 {[%emt 0:08:01]} Bxc5 {[%emt 0:00:
22]} 8. Nf3 {[%emt 0:01:00]} Nc6 {[%emt 0:01:37]} 9. Be2 {[%emt 0:02:14]} O-O {
[%emt 0:00:16]} 10. O-O {[%emt 0:00:51]} d4 {[%emt 0:01:41]} 11. exd4 {[%emt 0:
00:57]} Nxd4 {[%emt 0:00:13]} 12. Nxd4 {[%emt 0:00:58]} Bxd4 {[%emt 0:00:10]}
13. Bf3 {[%emt 0:05:36]} Qb6 {[%emt 0:03:56]} 14. Qb3 {[%emt 0:05:09]} Qxb3 {
[%emt 0:07:22]} 15. axb3 {[%emt 0:00:38]} Bg4 {[%emt 0:02:33]} 16. Bxb7 {
[%emt 0:11:41]} Ra7 {[%emt 0:00:07]} 17. Bc6 {[%emt 0:17:51]} Rc8 {[%emt 0:05:
35]} 1/2-1/2

[Event "Limburg Open 2022"]
[Site "Maastricht"]
[Date "2022.06.05"]
[Round "5.9"]
[White "Kopylov, Daniel"]
[Black "Roorda, Thijs"]
[Result "1-0"]
[ECO "C02"]
[WhiteElo "2326"]
[BlackElo "2104"]
[PlyCount "92"]
[EventDate "2022.06.03"]
[EventType "swiss"]
[EventRounds "7"]
[EventCountry "NED"]
[SourceTitle "Limburg Open"]
[Source "Limburg Open"]
[SourceDate "2022.06.06"]
[SourceVersion "7"]
[SourceVersionDate "2022.06.06"]
[SourceQuality "1"]
[TimeControl "7200+15"]

1. e4 {[%emt 0:00:03]} e6 {[%emt 0:00:05]} 2. d4 {[%emt 0:00:08]} d5 {[%emt 0:
00:05]} 3. e5 {[%emt 0:00:07]} c5 {[%emt 0:00:06]} 4. c3 {[%emt 0:00:05]} Nc6 {
[%emt 0:00:05]} 5. Nf3 {[%emt 0:00:08]} Qb6 {[%emt 0:00:06]} 6. Na3 {[%emt 0:
00:36]} cxd4 {[%emt 0:00:43]} 7. cxd4 {[%emt 0:00:11]} Bd7 {[%emt 0:11:52]} 8.
Nc2 {[%emt 0:03:58]} Rc8 {[%emt 0:00:20]} 9. Be2 {[%emt 0:11:24]} Bb4+ {
[%emt 0:05:58]} 10. Kf1 {[%emt 0:06:02]} Na5 {[%emt 0:02:36]} 11. g3 {[%emt 0:
06:46]} Ba4 {[%emt 0:14:29]} 12. b3 {[%emt 0:07:07]} Bb5 {[%emt 0:00:08]} 13.
Kg2 {[%emt 0:03:44]} Nc6 {[%emt 0:10:01]} 14. Bxb5 {[%emt 0:15:13]} Qxb5 {
[%emt 0:00:08]} 15. a4 {[%emt 0:00:14]} Qb6 {[%emt 0:02:26]} 16. Qd3 {[%emt 0:
00:46]} Nge7 {[%emt 0:00:54]} 17. Nxb4 {[%emt 0:05:44]} Nxb4 {[%emt 0:02:40]}
18. Qb5+ {[%emt 0:01:17]} Nec6 {[%emt 0:18:48]} 19. Bd2 {[%emt 0:02:51]} O-O {
[%emt 0:03:14]} 20. Rhc1 {[%emt 0:02:26]} Na6 {[%emt 0:03:10]} 21. b4 {[%emt 0:
13:25]} Ncxb4 {[%emt 0:12:31]} 22. Rxc8 {[%emt 0:10:04]} Rxc8 {[%emt 0:00:05]}
23. Rc1 {[%emt 0:00:04]} Rc6 {[%emt 0:07:06]} 24. Rb1 {[%emt 0:05:03]} Nc2 {
[%emt 0:00:20]} 25. Ba5 {[%emt 0:01:15]} Nxd4 {[%emt 0:11:06]} 26. Qxb6 {
[%emt 0:14:10]} axb6 {[%emt 0:05:33]} 27. Nxd4 {[%emt 0:00:02]} Rc4 {[%emt 0:
00:04]} 28. Bxb6 {[%emt 0:00:05]} Rxa4 {[%emt 0:00:04]} 29. Rc1 {[%emt 0:01:30]
} f6 {[%emt 0:01:48]} 30. exf6 {[%emt 0:02:16]} e5 {[%emt 0:01:05]} 31. Rc8+ {
[%emt 0:00:09]} Kf7 {[%emt 0:00:05]} 32. fxg7 {[%emt 0:00:46]} Kxg7 {[%emt 0:
00:09]} 33. Ne6+ {[%emt 0:01:30]} Kf6 {[%emt 0:00:11]} 34. Nc5 {[%emt 0:02:01]}
Nxc5 {[%emt 0:00:30]} 35. Rxc5 {[%emt 0:00:11]} Ra6 {[%emt 0:01:28]} 36. Bd8+ {
[%emt 0:00:40]} Ke6 {[%emt 0:00:05]} 37. Rc7 {[%emt 0:00:03]} Rd6 {[%emt 0:00:
41]} 38. Re7+ {[%emt 0:01:52]} Kf6 {[%emt 0:00:14]} 39. Rd7+ {[%emt 0:00:12]}
Ke6 {[%emt 0:00:04]} 40. Rxd6+ {[%emt 0:00:03]} Kxd6 {[%emt 0:00:03]} 41. Kf3 {
[%emt 0:00:12]} b5 {[%emt 0:00:09]} 42. Ke3 {[%emt 0:00:08]} Kc5 {[%emt 0:00:
12]} 43. f4 {[%emt 0:01:24]} d4+ {[%emt 0:00:56]} 44. Kd3 {[%emt 0:00:08]} Kd5
{[%emt 0:00:14]} 45. fxe5 {[%emt 0:00:22]} Kxe5 {[%emt 0:00:04]} 46. Bb6 {
[%emt 0:00:05]} Kf5 {[%emt 0:00:03]} 1-0

[Event "Limburg Open 2022"]
[Site "Maastricht"]
[Date "2022.06.05"]
[Round "5.10"]
[White "Bodicky, Michal"]
[Black "Fischer, Daniel"]
[Result "0-1"]
[ECO "E15"]
[WhiteElo "2106"]
[BlackElo "2324"]
[PlyCount "126"]
[EventDate "2022.06.03"]
[EventType "swiss"]
[EventRounds "7"]
[EventCountry "NED"]
[SourceTitle "Limburg Open"]
[Source "Limburg Open"]
[SourceDate "2022.06.06"]
[SourceVersion "7"]
[SourceVersionDate "2022.06.06"]
[SourceQuality "1"]
[TimeControl "7200+15"]

1. d4 {[%emt 0:00:07]} Nf6 {[%emt 0:00:06]} 2. c4 {[%emt 0:00:05]} e6 {[%emt 0:
00:05]} 3. Nf3 {[%emt 0:00:06]} b6 {[%emt 0:01:22]} 4. g3 {[%emt 0:00:14]} Ba6
{[%emt 0:00:32]} 5. b3 {[%emt 0:00:34]} Bb4+ {[%emt 0:00:15]} 6. Bd2 {[%emt 0:
00:20]} Be7 {[%emt 0:00:06]} 7. Bg2 {[%emt 0:00:30]} O-O {[%emt 0:00:11]} 8.
Ne5 {[%emt 0:03:00]} d5 {[%emt 0:01:22]} 9. O-O {[%emt 0:00:32]} Bb7 {[%emt 0:
02:40]} 10. Bc3 {[%emt 0:03:18]} Nbd7 {[%emt 0:02:59]} 11. Nd2 {[%emt 0:01:56]}
c5 {[%emt 0:05:53]} 12. cxd5 {[%emt 0:06:48]} Nxd5 {[%emt 0:13:17]} 13. Bb2 {
[%emt 0:01:42]} Nxe5 {[%emt 0:08:01]} 14. dxe5 {[%emt 0:00:06]} Qc7 {[%emt 0:
00:36]} 15. a3 {[%emt 0:09:13]} b5 {[%emt 0:01:16]} 16. Qc2 {[%emt 0:02:29]}
Rac8 {[%emt 0:02:32]} 17. Rac1 {[%emt 0:04:18]} Qb8 {[%emt 0:03:10]} 18. Rfd1 {
[%emt 0:11:32]} c4 {[%emt 0:02:31]} 19. bxc4 {[%emt 0:04:46]} bxc4 {[%emt 0:00:
05]} 20. Ne4 {[%emt 0:06:58]} c3 {[%emt 0:12:01]} 21. Nxc3 {[%emt 0:03:40]}
Nxc3 {[%emt 0:01:13]} 22. Bxc3 {[%emt 0:02:51]} Bxg2 {[%emt 0:00:13]} 23. Kxg2
{[%emt 0:00:29]} Bxa3 {[%emt 0:00:50]} 24. Rb1 {[%emt 0:01:17]} Qc7 {[%emt 0:
00:33]} 25. Rb3 {[%emt 0:02:31]} Be7 {[%emt 0:05:58]} 26. Qe4 {[%emt 0:03:21]}
Rb8 {[%emt 0:05:34]} 27. Rdb1 {[%emt 0:03:49]} Rxb3 {[%emt 0:00:27]} 28. Rxb3 {
[%emt 0:00:02]} Rb8 {[%emt 0:03:38]} 29. Ba5 {[%emt 0:06:05]} Qc8 {[%emt 0:00:
16]} 30. Rc3 {[%emt 0:12:42]} Qa6 {[%emt 0:04:19]} 31. Bc7 {[%emt 0:02:21]} Rc8
{[%emt 0:03:56]} 32. Qc2 {[%emt 0:00:48]} Bb4 {[%emt 0:07:11]} 33. Rc4 {
[%emt 0:00:54]} Qb5 {[%emt 0:04:10]} 34. e4 {[%emt 0:07:37]} g6 {[%emt 0:03:06]
} 35. Rd4 {[%emt 0:04:25]} Ba5 {[%emt 0:03:03]} 36. Rc4 {[%emt 0:00:41]} Bb6 {
[%emt 0:01:06]} 37. Rc3 {[%emt 0:01:35]} Bd4 {[%emt 0:01:57]} 38. Rb3 {[%emt 0:
01:30]} Qd7 {[%emt 0:04:05]} 39. Rb8 {[%emt 0:00:57]} Kg7 {[%emt 0:04:28]} 40.
Bd6 {[%emt 0:01:36]} Rxb8 {[%emt 0:02:19]} 41. Bxb8 {[%emt 0:00:03]} Qb5 {
[%emt 0:04:59]} 42. Bd6 {[%emt 0:04:45]} Bxe5 {[%emt 0:00:22]} 43. Ba3 {
[%emt 0:00:20]} Qb7 {[%emt 0:00:57]} 44. Kh3 {[%emt 0:00:26]} h5 {[%emt 0:00:
29]} 45. f4 {[%emt 0:01:11]} Bd4 {[%emt 0:00:26]} 46. Qd3 {[%emt 0:01:03]} e5 {
[%emt 0:00:51]} 47. fxe5 {[%emt 0:01:17]} Qc8+ {[%emt 0:00:02]} 48. Kg2 {
[%emt 0:00:16]} Bxe5 {[%emt 0:00:01]} 49. Qd5 {[%emt 0:00:59]} Qc3 {[%emt 0:01:
04]} 50. Be7 {[%emt 0:00:58]} Bf6 {[%emt 0:00:42]} 51. Bc5 {[%emt 0:00:24]} a5
{[%emt 0:00:29]} 52. Qd6 {[%emt 0:00:44]} Qc4 {[%emt 0:00:43]} 53. e5 {[%emt 0:
00:33]} Qe4+ {[%emt 0:00:23]} 54. Kg1 {[%emt 0:00:18]} Qxe5 {[%emt 0:00:27]}
55. Qf8+ {[%emt 0:00:07]} Kh7 {[%emt 0:00:03]} 56. Qxf7+ {[%emt 0:00:02]} Bg7 {
[%emt 0:00:04]} 57. Be7 {[%emt 0:01:18]} a4 {[%emt 0:00:44]} 58. Kg2 {[%emt 0:
00:13]} Qb2+ {[%emt 0:00:25]} 59. Kh3 {[%emt 0:00:21]} Qd4 {[%emt 0:00:15]} 60.
Kg2 {[%emt 0:00:16]} Qd7 {[%emt 0:00:22]} 61. h4 {[%emt 0:01:24]} a3 {[%emt 0:
00:09]} 62. g4 {[%emt 0:00:17]} Qxg4+ {[%emt 0:00:05]} 63. Kh2 {[%emt 0:00:23]}
Qd7 {[%emt 0:00:05]} 0-1

[Event "Limburg Open 2022"]
[Site "Maastricht"]
[Date "2022.06.05"]
[Round "5.11"]
[White "Van Meegen, Ruud"]
[Black "Roebers, Eline"]
[Result "1/2-1/2"]
[ECO "E60"]
[WhiteElo "2285"]
[BlackElo "2378"]
[PlyCount "22"]
[EventDate "2022.06.03"]
[EventType "swiss"]
[EventRounds "7"]
[EventCountry "NED"]
[SourceTitle "Limburg Open"]
[Source "Limburg Open"]
[SourceDate "2022.06.06"]
[SourceVersion "7"]
[SourceVersionDate "2022.06.06"]
[SourceQuality "1"]
[TimeControl "7200+15"]

1. Nf3 {[%emt 0:00:03]} Nf6 {[%emt 0:00:03]} 2. g3 {[%emt 0:00:06]} g6 {
[%emt 0:00:03]} 3. b3 {[%emt 0:00:04]} Bg7 {[%emt 0:00:03]} 4. Bb2 {[%emt 0:00:
04]} O-O {[%emt 0:00:04]} 5. Bg2 {[%emt 0:00:07]} c5 {[%emt 0:01:02]} 6. c4 {
[%emt 0:01:55]} Nc6 {[%emt 0:02:25]} 7. O-O {[%emt 0:00:26]} d6 {[%emt 0:00:59]
} 8. d4 {[%emt 0:00:31]} a6 {[%emt 0:01:12]} 9. Nc3 {[%emt 0:02:14]} cxd4 {
[%emt 0:04:49]} 10. Nxd4 {[%emt 0:00:10]} Bd7 {[%emt 0:00:26]} 11. Rc1 {
[%emt 0:09:50]} Rb8 {[%emt 0:03:46]} 1/2-1/2

[Event "Limburg Open 2022"]
[Site "Maastricht"]
[Date "2022.06.05"]
[Round "5.12"]
[White "Kucharska, Honorata"]
[Black "Ondersteijn, Niels"]
[Result "0-1"]
[ECO "E62"]
[WhiteElo "2181"]
[BlackElo "2376"]
[PlyCount "128"]
[EventDate "2022.06.03"]
[EventType "swiss"]
[EventRounds "7"]
[EventCountry "NED"]
[SourceTitle "Limburg Open"]
[Source "Limburg Open"]
[SourceDate "2022.06.06"]
[SourceVersion "7"]
[SourceVersionDate "2022.06.06"]
[SourceQuality "1"]
[TimeControl "7200+15"]

1. d4 {[%emt 0:00:09]} d6 {[%emt 0:00:29]} 2. Nf3 {[%emt 0:00:19]} Nf6 {
[%emt 0:00:20]} 3. g3 {[%emt 0:00:15]} g6 {[%emt 0:00:08]} 4. Bg2 {[%emt 0:00:
05]} Bg7 {[%emt 0:00:05]} 5. c4 {[%emt 0:00:22]} O-O {[%emt 0:00:23]} 6. O-O {
[%emt 0:00:08]} Nc6 {[%emt 0:00:05]} 7. Nc3 {[%emt 0:00:25]} e5 {[%emt 0:00:17]
} 8. dxe5 {[%emt 0:09:02]} Nxe5 {[%emt 0:00:49]} 9. Nxe5 {[%emt 0:00:38]} dxe5
{[%emt 0:00:06]} 10. Qc2 {[%emt 0:00:58]} c6 {[%emt 0:04:11]} 11. Rd1 {[%emt 0:
01:48]} Qc7 {[%emt 0:02:13]} 12. Bg5 {[%emt 0:07:44]} Be6 {[%emt 0:08:36]} 13.
c5 {[%emt 0:05:50]} h6 {[%emt 0:22:15]} 14. Bxf6 {[%emt 0:02:51]} Bxf6 {
[%emt 0:00:02]} 15. Ne4 {[%emt 0:00:06]} Be7 {[%emt 0:02:59]} 16. Nd6 {[%emt 0:
05:46]} Rfd8 {[%emt 0:02:42]} 17. Qd2 {[%emt 0:04:08]} Kh7 {[%emt 0:07:29]} 18.
h4 {[%emt 0:01:26]} Rd7 {[%emt 0:05:57]} 19. h5 {[%emt 0:07:14]} Rad8 {[%emt 0:
02:37]} 20. hxg6+ {[%emt 0:04:02]} fxg6 {[%emt 0:00:06]} 21. Qe3 {[%emt 0:09:
21]} Bxd6 {[%emt 0:01:42]} 22. cxd6 {[%emt 0:00:04]} Rxd6 {[%emt 0:09:36]} 23.
Rxd6 {[%emt 0:00:04]} Rxd6 {[%emt 0:00:18]} 24. Qxa7 {[%emt 0:00:06]} Rd2 {
[%emt 0:03:25]} 25. Rc1 {[%emt 0:02:01]} Qd7 {[%emt 0:02:08]} 26. Qe3 {[%emt 0:
02:57]} Bxa2 {[%emt 0:06:37]} 27. Qxe5 {[%emt 0:00:23]} Qg7 {[%emt 0:02:14]}
28. Qe3 {[%emt 0:06:02]} Qxb2 {[%emt 0:01:18]} 29. Re1 {[%emt 0:00:12]} Qd4 {
[%emt 0:05:05]} 30. Qe7+ {[%emt 0:00:07]} Qg7 {[%emt 0:00:05]} 31. Qe3 {
[%emt 0:00:16]} Rd7 {[%emt 0:04:53]} 32. Qa3 {[%emt 0:02:48]} Be6 {[%emt 0:04:
20]} 33. Bf3 {[%emt 0:06:29]} Qe5 {[%emt 0:04:42]} 34. Rc1 {[%emt 0:01:18]} Bd5
{[%emt 0:03:15]} 35. Rd1 {[%emt 0:06:50]} Be6 {[%emt 0:03:45]} 36. Rxd7+ {
[%emt 0:00:49]} Bxd7 {[%emt 0:00:01]} 37. Qa7 {[%emt 0:01:17]} Qc7 {[%emt 0:00:
12]} 38. Qc5 {[%emt 0:00:37]} Be8 {[%emt 0:01:05]} 39. Qe3 {[%emt 0:07:38]} Bf7
{[%emt 0:00:59]} 40. Qc5 {[%emt 0:00:19]} Qd7 {[%emt 0:00:35]} 41. Kg2 {
[%emt 0:02:08]} Bd5 {[%emt 0:00:54]} 42. e4 {[%emt 0:01:02]} Be6 {[%emt 0:00:
05]} 43. e5 {[%emt 0:02:39]} Kg7 {[%emt 0:00:33]} 44. Kh2 {[%emt 0:01:09]} h5 {
[%emt 0:00:45]} 45. Bg2 {[%emt 0:02:15]} Kf7 {[%emt 0:01:36]} 46. Qe3 {[%emt 0:
00:46]} Kg7 {[%emt 0:00:50]} 47. Qc5 {[%emt 0:01:59]} Qc7 {[%emt 0:00:18]} 48.
f4 {[%emt 0:01:36]} Qf7 {[%emt 0:02:00]} 49. Qd4 {[%emt 0:00:27]} Qe7 {[%emt 0:
01:13]} 50. Be4 {[%emt 0:03:12]} h4 {[%emt 0:00:33]} 51. Qd3 {[%emt 0:00:36]}
Qc5 {[%emt 0:01:29]} 52. Qd2 {[%emt 0:02:07]} hxg3+ {[%emt 0:00:36]} 53. Kxg3 {
[%emt 0:00:04]} Qg1+ {[%emt 0:00:32]} 54. Qg2 {[%emt 0:00:58]} Qxg2+ {[%emt 0:
00:10]} 55. Bxg2 {[%emt 0:00:06]} Bd5 {[%emt 0:00:34]} 56. Bf1 {[%emt 0:01:55]}
b5 {[%emt 0:00:03]} 57. Kf2 {[%emt 0:00:09]} b4 {[%emt 0:00:41]} 58. Ke3 {
[%emt 0:00:46]} c5 {[%emt 0:00:17]} 59. Kd2 {[%emt 0:00:51]} Be6 {[%emt 0:01:
28]} 60. Bd3 {[%emt 0:00:36]} Kh6 {[%emt 0:00:05]} 61. Kc2 {[%emt 0:00:09]} Kh5
{[%emt 0:00:27]} 62. Kb2 {[%emt 0:01:01]} Kg4 {[%emt 0:00:18]} 63. Bxg6 {
[%emt 0:00:09]} Kxf4 {[%emt 0:00:02]} 64. Bh7 {[%emt 0:00:07]} Kxe5 {[%emt 0:
00:03]} 0-1